[Event "European Online Club-ch-H 2021"]
[Site "Online"]
[Date "2021.03.27"]
[Round "7.12"]
[White "Buhmann, Rainer"]
[Black "Hald Falkesgaard, Jeppe"]
[Result "1-0"]
[ECO "E61"]
[WhiteElo "2580"]
[BlackElo "1986"]
[Annotator "ChessBase"]
[PlyCount "71"]
[EventDate "2021.03.27"]
[EventType "team-tourn"]
[EventCountry "NET"]
[SourceTitle "playchess.com"]
[Source "ChessBase"]
[SourceQuality "1"]
[TimeControl "900+5"]

1. d4 {[%emt 0:00:00]} Nf6 {[%emt 0:00:04]} 2. Nf3 {[%emt 0:00:02]} g6 {[%emt 0:00:03]} 3. c4 {[%emt 0:00:01]} Bg7 {[%emt 0:00:02]} 4. e3 {[%emt 0:00:01]} O-O {[%emt 0:00:01]} 5. Be2 {[%emt 0:00:02]} d6 {[%emt 0:00:03]} 6. Nc3 {[%emt 0:00:02]} c5 {[%emt 0:00:25]} 7. O-O {[%emt 0:00:09]} Nc6 {[%emt 0:00:03]} 8. d5 {[%emt 0:00:02]} Na5 {[%emt 0:00:02]} 9. e4 {[%emt 0:00:11]} b6 {[%emt 0:00:09]} 10. Rb1 {[%emt 0:00:05]} Nd7 {[%emt 0:00:15]} 11. Bd2 {[%emt 0:00:10]} Ne5 {[%emt 0:00:18]} 12. Nxe5 {[%emt 0:00:07]} Bxe5 {[%emt 0:00:05]} 13. Bd3 {[%emt 0:00:10]} e6 {[%emt 0:00:45]} 14. Kh1 {[%emt 0:00:40]} Qh4 {[%emt 0:00:58]} 15. f4 {[%emt 0:00:04]} Bg7 {[%emt 0:00:10]} 16. b3 {[%emt 0:00:30]} f5 {[%emt 0:00:42]} 17. exf5 {[%emt 0:00:17]} exd5 {[%emt 0:00:30]} 18. Nxd5 {[%emt 0:00:19]} Bxf5 {[%emt 0:00:05]} 19. Bxf5 {[%emt 0:00:03]} gxf5 {[%emt 0:00:28]} 20. g3 {[%emt 0:00:22]} Qh3 {[%emt 0:01:02]} 21. Nc7 {[%emt 0:00:39]} Rac8 {[%emt 0:00:42]} 22. Ne6 {[%emt 0:00:07]} Rfe8 {[%emt 0:00:03]} 23. Nxg7 {[%emt 0:00:51]} Kxg7 {[%emt 0:00:05]} 24. Bc3+ {[%emt 0:00:03]} Kg8 {[%emt 0:00:04]} 25. Qd5+ {[%emt 0:00:07]} Kf8 {[%emt 0:00:06]} 26. Qxd6+ {[%emt 0:00:07]} Kg8 {[%emt 0:00:08]} 27. Qf6 {[%emt 0:00:38]} Qg4 {[%emt 0:00:26]} 28. Qh8+ {[%emt 0:01:09]} Kf7 {[%emt 0:00:04]} 29. Qxh7+ {[%emt 0:00:03]} Kf8 {[%emt 0:00:04]} 30. Qh6+ {[%emt 0:00:34]} Kf7 {[%emt 0:00:07]} 31. Qf6+ {[%emt 0:00:06]} Kg8 {[%emt 0:00:04]} 32. Rbe1 {[%emt 0:00:24]} Rxe1 {[%emt 0:00:21]} 33. Rxe1 {[%emt 0:00:12]} Rf8 {[%emt 0:00:35]} 34. Qh8+ {[%emt 0:00:11]} Kf7 {[%emt 0:00:09]} 35. Qh7+ {[%emt 0:00:07]} Qg7 {[%emt 0:00:05]} 36. Qxg7# {[%emt 0:00:02]} 1-0

[Event "European Online Club-ch-H 2021"]
[Site "Online"]
[Date "2021.03.27"]
[Round "7.14"]
[White "Eljanov, Pavel"]
[Black "Sabuk, Piotr"]
[Result "0-1"]
[ECO "D02"]
[WhiteElo "2672"]
[BlackElo "2366"]
[Annotator "ChessBase"]
[PlyCount "124"]
[EventDate "2021.03.27"]
[EventType "team-tourn"]
[EventCountry "NET"]
[SourceTitle "playchess.com"]
[Source "ChessBase"]
[SourceQuality "1"]
[TimeControl "900+5"]

1. d4 {[%emt 0:00:00]} Nf6 {[%emt 0:00:03]} 2. Nf3 {[%emt 0:00:04]} e6 {[%emt 0:00:05]} 3. Bf4 {[%emt 0:00:03]} d5 {[%emt 0:00:20]} 4. e3 {[%emt 0:00:03]} c5 {[%emt 0:00:11]} 5. c3 {[%emt 0:00:05]} Nc6 {[%emt 0:00:02]} 6. Nbd2 {[%emt 0:00:03]} cxd4 {[%emt 0:00:05]} 7. exd4 {[%emt 0:00:01]} Nh5 {[%emt 0:00:02]} 8. Be3 {[%emt 0:00:12]} Bd6 {[%emt 0:00:11]} 9. Ne5 {[%emt 0:00:04]} g6 {[%emt 0:00:20]} 10. Nd3 {[%emt 0:00:02]} Qc7 {[%emt 0:00:42]} 11. g3 {[%emt 0:00:12]} Ng7 {[%emt 0:00:07]} 12. Bf4 {[%emt 0:01:04]} Nf5 {[%emt 0:00:15]} 13. Nf3 {[%emt 0:02:13]} f6 {[%emt 0:02:24]} 14. Bxd6 {[%emt 0:00:46]} Qxd6 {[%emt 0:00:19]} 15. Qe2 {[%emt 0:04:11]} Bd7 {[%emt 0:01:19]} 16. g4 {[%emt 0:00:32]} Nfe7 {[%emt 0:00:13]} 17. g5 {[%emt 0:00:14]} fxg5 {[%emt 0:02:44]} 18. Nxg5 {[%emt 0:00:04]} O-O {[%emt 0:00:06]} 19. O-O-O {[%emt 0:02:14]} b5 {[%emt 0:00:40]} 20. Kb1 {[%emt 0:01:01]} b4 {[%emt 0:00:06]} 21. Nxb4 {[%emt 0:00:04]} Nxb4 {[%emt 0:00:03]} 22. cxb4 {[%emt 0:00:03]} Rab8 {[%emt 0:00:10]} 23. Bh3 {[%emt 0:00:14]} Nf5 {[%emt 0:00:49]} 24. Nf3 {[%emt 0:00:30]} Rxb4 {[%emt 0:00:15]} 25. Bxf5 {[%emt 0:00:10]} exf5 {[%emt 0:00:42]} 26. Ne5 {[%emt 0:00:25]} f4 {[%emt 0:00:34]} 27. Ka1 {[%emt 0:00:34]} Bf5 {[%emt 0:00:15]} 28. Rd2 {[%emt 0:01:15]} Qb6 {[%emt 0:00:48]} 29. Rhd1 {[%emt 0:00:25]} Ra4 {[%emt 0:00:30]} 30. Qf3 {[%emt 0:00:09]} Be4 {[%emt 0:00:21]} 31. Qc3 {[%emt 0:00:08]} Qa6 {[%emt 0:00:03]} 32. Qb3 {[%emt 0:00:16]} Rc8 {[%emt 0:01:22]} 33. f3 {[%emt 0:00:03]} Bc2 {[%emt 0:00:14]} 34. Qxd5+ {[%emt 0:00:02]} Kh8 {[%emt 0:00:10]} 35. Rc1 {[%emt 0:00:07]} Rcc4 {[%emt 0:00:23]} 36. Qxc4 {[%emt 0:00:15]} Rxc4 {[%emt 0:00:02]} 37. Nxc4 {[%emt 0:00:01]} Bb3 {[%emt 0:00:07]} 38. Na3 {[%emt 0:00:02]} Bd5 {[%emt 0:00:02]} 39. Re1 {[%emt 0:00:15]} Qa5 {[%emt 0:00:15]} 40. Rdd1 {[%emt 0:00:07]} Bxf3 {[%emt 0:00:04]} 41. Rc1 {[%emt 0:00:01]} Kg7 {[%emt 0:00:08]} 42. Nc4 {[%emt 0:00:04]} Qa6 {[%emt 0:00:07]} 43. b3 {[%emt 0:00:07]} Bd5 {[%emt 0:00:04]} 44. Re7+ {[%emt 0:00:03]} Kh6 {[%emt 0:00:03]} 45. Rd7 {[%emt 0:00:07]} Qe6 {[%emt 0:00:10]} 46. Ne5 {[%emt 0:00:07]} f3 {[%emt 0:00:13]} 47. Rf1 {[%emt 0:00:03]} Qa6 {[%emt 0:00:22]} 48. Rf2 {[%emt 0:00:06]} Be4 {[%emt 0:00:12]} 49. Kb2 {[%emt 0:00:04]} Qb5 {[%emt 0:00:16]} 50. Rf7 {[%emt 0:00:05]} Qb4 {[%emt 0:00:03]} 51. Nxf3 {[%emt 0:00:02]} Bxf3 {[%emt 0:00:02]} 52. R7xf3 {[%emt 0:00:03]} Qxd4+ {[%emt 0:00:01]} 53. Kc2 {[%emt 0:00:01]} Qa1 {[%emt 0:00:04]} 54. Kd3 {[%emt 0:00:01]} Qd1+ {[%emt 0:00:02]} 55. Kc4 {[%emt 0:00:02]} Qc1+ {[%emt 0:00:04]} 56. Kb5 {[%emt 0:00:01]} Qg5+ {[%emt 0:00:07]} 57. Ka6 {[%emt 0:00:04]} Qc5 {[%emt 0:00:02]} 58. Rf6 {[%emt 0:00:01]} Kg5 {[%emt 0:00:09]} 59. R2f4 {[%emt 0:00:01]} Qc7 {[%emt 0:00:09]} 60. h4+ {[%emt 0:00:02]} Kh6 {[%emt 0:00:02]} 61. b4 {[%emt 0:00:03]} Kh5 {[%emt 0:00:03]} 62. Rf7 {[%emt 0:00:05]} Qb6# {[%emt 0:00:14]} 0-1

[Event "European Online Club-ch-H 2021"]
[Site "Online"]
[Date "2021.03.27"]
[Round "7.15"]
[White "Valuet, Bertrand"]
[Black "Baklan, Vladimir"]
[Result "0-1"]
[ECO "B31"]
[WhiteElo "2217"]
[BlackElo "2587"]
[Annotator "ChessBase"]
[PlyCount "116"]
[EventDate "2021.03.27"]
[EventType "team-tourn"]
[EventCountry "NET"]
[SourceTitle "playchess.com"]
[Source "ChessBase"]
[SourceQuality "1"]
[TimeControl "900+5"]

1. e4 {[%emt 0:00:00]} c5 {[%emt 0:00:03]} 2. Nf3 {[%emt 0:00:03]} Nc6 {[%emt 0:00:02]} 3. Bb5 {[%emt 0:00:06]} g6 {[%emt 0:00:03]} 4. Bxc6 {[%emt 0:00:03]} dxc6 {[%emt 0:00:02]} 5. Nc3 {[%emt 0:00:08]} Bg7 {[%emt 0:00:02]} 6. d3 {[%emt 0:00:07]} Nh6 {[%emt 0:00:11]} 7. Be3 {[%emt 0:00:15]} b6 {[%emt 0:00:03]} 8. Qd2 {[%emt 0:00:22]} Ng4 {[%emt 0:00:05]} 9. Bf4 {[%emt 0:00:03]} e5 {[%emt 0:00:08]} 10. Bg5 {[%emt 0:00:03]} f6 {[%emt 0:00:07]} 11. h3 {[%emt 0:00:06]} Nxf2 {[%emt 0:02:04]} 12. Qxf2 {[%emt 0:02:27]} fxg5 {[%emt 0:00:03]} 13. Qg3 {[%emt 0:00:07]} h6 {[%emt 0:00:09]} 14. h4 {[%emt 0:03:40]} g4 {[%emt 0:00:06]} 15. h5 {[%emt 0:00:02]} O-O {[%emt 0:00:52]} 16. Nh4 {[%emt 0:00:46]} gxh5 {[%emt 0:00:16]} 17. O-O-O {[%emt 0:01:51]} Qg5+ {[%emt 0:00:53]} 18. Kb1 {[%emt 0:00:07]} Be6 {[%emt 0:00:05]} 19. Qe1 {[%emt 0:01:05]} Rf7 {[%emt 0:00:20]} 20. Ne2 {[%emt 0:00:13]} c4 {[%emt 0:00:50]} 21. Ng3 {[%emt 0:00:41]} Rd8 {[%emt 0:00:23]} 22. dxc4 {[%emt 0:00:34]} Rxd1+ {[%emt 0:00:32]} 23. Qxd1 {[%emt 0:00:03]} Rd7 {[%emt 0:00:02]} 24. Qe1 {[%emt 0:00:17]} Bxc4 {[%emt 0:00:17]} 25. Nhf5 {[%emt 0:00:14]} Bf7 {[%emt 0:00:11]} 26. b3 {[%emt 0:00:45]} Qd2 {[%emt 0:01:27]} 27. Qf1 {[%emt 0:00:07]} Bf8 {[%emt 0:00:14]} 28. Nxh5 {[%emt 0:00:41]} Bxh5 {[%emt 0:03:08]} 29. Rxh5 {[%emt 0:00:04]} Qd1+ {[%emt 0:00:01]} 30. Qxd1 {[%emt 0:00:02]} Rxd1+ {[%emt 0:00:02]} 31. Kb2 {[%emt 0:00:02]} Kf7 {[%emt 0:00:48]} 32. Rh4 {[%emt 0:00:07]} Re1 {[%emt 0:00:54]} 33. Rxg4 {[%emt 0:00:05]} h5 {[%emt 0:00:01]} 34. Rh4 {[%emt 0:00:05]} Kg6 {[%emt 0:00:01]} 35. Kc3 {[%emt 0:00:33]} Kg5 {[%emt 0:00:19]} 36. Kd2 {[%emt 0:00:12]} Ra1 {[%emt 0:00:05]} 37. a4 {[%emt 0:00:14]} Bb4+ {[%emt 0:00:14]} 38. c3 {[%emt 0:00:06]} Bc5 {[%emt 0:00:06]} 39. Kd3 {[%emt 0:00:31]} b5 {[%emt 0:00:43]} 40. axb5 {[%emt 0:00:16]} cxb5 {[%emt 0:00:02]} 41. Rh3 {[%emt 0:00:10]} Rd1+ {[%emt 0:00:08]} 42. Ke2 {[%emt 0:00:09]} Rg1 {[%emt 0:00:06]} 43. Kf3 {[%emt 0:00:12]} a5 {[%emt 0:00:20]} 44. Rg3+ {[%emt 0:00:04]} Kf6 {[%emt 0:00:03]} 45. Rg8 {[%emt 0:00:07]} Rc1 {[%emt 0:00:07]} 46. c4 {[%emt 0:00:20]} bxc4 {[%emt 0:00:21]} 47. bxc4 {[%emt 0:00:02]} Rxc4 {[%emt 0:00:01]} 48. Ra8 {[%emt 0:00:03]} a4 {[%emt 0:00:10]} 49. Ra6+ {[%emt 0:00:05]} Kg5 {[%emt 0:00:05]} 50. Rc6 {[%emt 0:00:07]} Rc3+ {[%emt 0:00:08]} 51. Ke2 {[%emt 0:00:03]} a3 {[%emt 0:00:01]} 52. Ra6 {[%emt 0:00:06]} Kf4 {[%emt 0:00:09]} 53. Kd2 {[%emt 0:00:04]} Bb4 {[%emt 0:00:08]} 54. g3+ {[%emt 0:00:18]} Kxe4 {[%emt 0:00:06]} 55. Nd6+ {[%emt 0:00:03]} Kf3 {[%emt 0:00:03]} 56. Ra4 {[%emt 0:00:07]} Rb3+ {[%emt 0:00:05]} 57. Kc2 {[%emt 0:00:05]} Rb2+ {[%emt 0:00:01]} 58. Kc1 {[%emt 0:00:03]} Bxd6 {[%emt 0:00:03]} 0-1

[Event "European Online Club-ch-H 2021"]
[Site "Online"]
[Date "2021.03.27"]
[Round "7.17"]
[White "Manik, Mikulas"]
[Black "Vaisser, Anatoly"]
[Result "1-0"]
[ECO "B30"]
[WhiteElo "2353"]
[BlackElo "2501"]
[Annotator "ChessBase"]
[PlyCount "45"]
[EventDate "2021.03.27"]
[EventType "team-tourn"]
[EventCountry "NET"]
[SourceTitle "playchess.com"]
[Source "ChessBase"]
[SourceQuality "1"]
[TimeControl "900+5"]

1. e4 {[%emt 0:00:04]} c5 {[%emt 0:00:18]} 2. Nf3 {[%emt 0:00:03]} Nc6 {[%emt 0:00:01]} 3. Bb5 {[%emt 0:00:03]} e6 {[%emt 0:00:02]} 4. O-O {[%emt 0:00:06]} Nge7 {[%emt 0:00:02]} 5. Re1 {[%emt 0:00:02]} a6 {[%emt 0:00:04]} 6. Bxc6 {[%emt 0:00:02]} Nxc6 {[%emt 0:00:02]} 7. d4 {[%emt 0:00:06]} cxd4 {[%emt 0:00:04]} 8. Nxd4 {[%emt 0:00:02]} Be7 {[%emt 0:00:27]} 9. Nxc6 {[%emt 0:00:21]} dxc6 {[%emt 0:00:09]} 10. Qg4 {[%emt 0:00:03]} g6 {[%emt 0:00:03]} 11. e5 {[%emt 0:00:30]} O-O {[%emt 0:00:12]} 12. Bh6 {[%emt 0:00:07]} Re8 {[%emt 0:00:15]} 13. Nc3 {[%emt 0:00:03]} Qc7 {[%emt 0:00:50]} 14. Rad1 {[%emt 0:00:39]} c5 {[%emt 0:00:11]} 15. Ne4 {[%emt 0:00:27]} Qxe5 {[%emt 0:00:28]} 16. Nd6 {[%emt 0:00:05]} Bxd6 {[%emt 0:00:05]} 17. Rxe5 {[%emt 0:00:05]} Bxe5 {[%emt 0:00:01]} 18. Qa4 {[%emt 0:00:16]} Bd7 {[%emt 0:03:55]} 19. Rxd7 {[%emt 0:00:08]} b5 {[%emt 0:00:22]} 20. Qe4 {[%emt 0:00:06]} Bxb2 {[%emt 0:00:09]} 21. Qf4 {[%emt 0:00:08]} f5 {[%emt 0:00:46]} 22. Qc7 {[%emt 0:00:06]} Ra7 {[%emt 0:00:34]} 23. Qxa7 {[%emt 0:00:05]} 1-0

[Event "European Online Club-ch-H 2021"]
[Site "Online"]
[Date "2021.03.27"]
[Round "7.18"]
[White "Roux, Olivier"]
[Black "Danada, Tomas"]
[Result "1/2-1/2"]
[ECO "B58"]
[WhiteElo "2156"]
[BlackElo "2321"]
[Annotator "NA"]
[PlyCount "158"]
[EventDate "2021.03.27"]
[EventType "team-tourn"]
[EventCountry "NET"]
[SourceTitle "playchess.com"]
[Source "ChessBase"]
[SourceQuality "1"]
[TimeControl "900+5"]

1. e4 {[%emt 0:00:00]} c5 {[%emt 0:00:03]} 2. Nf3 {[%emt 0:00:03]} Nc6 {[%emt 0:00:04]} 3. d4 {[%emt 0:00:02]} cxd4 {[%emt 0:00:02]} 4. Nxd4 {[%emt 0:00:01]} Nf6 {[%emt 0:00:01]} 5. Nc3 {[%emt 0:00:02]} d6 {[%emt 0:00:02]} 6. Be2 {[%emt 0:00:08]} e5 {[%emt 0:00:02]} 7. Nf3 {[%emt 0:00:45]} h6 {[%emt 0:00:02]} 8. O-O {[%emt 0:00:04]} Be7 {[%emt 0:00:01]} 9. h3 {[%emt 0:00:14]} Be6 {[%emt 0:00:04]} 10. Be3 {[%emt 0:00:33]} Rc8 {[%emt 0:00:38]} 11. Bb5 {[%emt 0:00:24]} a6 {[%emt 0:00:05]} 12. Ba4 {[%emt 0:00:08]} O-O {[%emt 0:00:13]} 13. Bb3 {[%emt 0:00:25]} Na5 {[%emt 0:00:41]} 14. Bxe6 {[%emt 0:00:27]} fxe6 {[%emt 0:00:02]} 15. Qd3 {[%emt 0:00:13]} Nc4 {[%emt 0:00:07]} 16. Bc1 {[%emt 0:00:23]} d5 {[%emt 0:01:08]} 17. b3 {[%emt 0:00:17]} dxe4 {[%emt 0:00:16]} 18. Nxe4 {[%emt 0:00:08]} Qxd3 {[%emt 0:00:50]} 19. cxd3 {[%emt 0:00:05]} Nxe4 {[%emt 0:02:03]} 20. dxe4 {[%emt 0:01:02]} Nd6 {[%emt 0:00:27]} 21. Re1 {[%emt 0:00:15]} Nf7 {[%emt 0:00:15]} 22. Re2 {[%emt 0:00:37]} Rfd8 {[%emt 0:00:23]} 23. Bb2 {[%emt 0:00:05]} Bf6 {[%emt 0:00:04]} 24. Kf1 {[%emt 0:00:18]} Rc5 {[%emt 0:02:11]} 25. Rc1 {[%emt 0:00:20]} Rxc1+ {[%emt 0:00:25]} 26. Bxc1 {[%emt 0:00:03]} Rd1+ {[%emt 0:00:30]} 27. Re1 {[%emt 0:00:03]} Rd7 {[%emt 0:00:03]} 28. Bb2 {[%emt 0:00:16]} Kf8 {[%emt 0:00:23]} 29. Ke2 {[%emt 0:00:14]} Ke8 {[%emt 0:00:06]} 30. Rc1 {[%emt 0:00:07]} Kd8 {[%emt 0:00:21]} 31. Rc5 {[%emt 0:00:12]} Rc7 {[%emt 0:00:05]} 32. Rxc7 {[%emt 0:01:08]} Kxc7 {[%emt 0:00:09]} 33. h4 {[%emt 0:00:20]} h5 {[%emt 0:00:14]} 34. g3 {[%emt 0:00:22]} b5 {[%emt 0:00:42]} 35. Kd3 {[%emt 0:00:07]} Kc6 {[%emt 0:00:06]} 36. a4 {[%emt 0:00:14]} Kc5 {[%emt 0:00:32]} 37. Ba3+ {[%emt 0:00:20]} Kc6 {[%emt 0:00:04]} 38. axb5+ {[%emt 0:00:16]} axb5 {[%emt 0:00:02]} 39. Kc3 {[%emt 0:00:22]} Nh6 {[%emt 0:00:14]} 40. Ne1 {[%emt 0:00:21]} Ng4 {[%emt 0:00:17]} 41. Nd3 {[%emt 0:00:03]} Nh2 {[%emt 0:00:25]} 42. Bc1 {[%emt 0:01:09]} Nf3 {[%emt 0:00:42]} 43. Nb4+ {[%emt 0:00:19]} Kd6 {[%emt 0:00:16]} 44. Be3 {[%emt 0:00:05]} Nd4 {[%emt 0:00:12]} 45. Nd3 {[%emt 0:00:46]} Nc6 {[%emt 0:00:51]} 46. Bc5+ {[%emt 0:00:31]} Kc7 {[%emt 0:00:06]} 47. Be3 {[%emt 0:01:15]} Kd6 {[%emt 0:00:13]} 48. b4 {[%emt 0:00:24]} Nd4 {[%emt 0:00:20]} 49. Nxe5 {[%emt 0:01:39]} Kxe5 {[%emt 0:00:41]} 50. Kd3 {[%emt 0:00:14]} Ne2 {[%emt 0:00:26]} 51. f4+ {[%emt 0:00:04]} Kd6 {[%emt 0:00:02]} 52. Kxe2 {[%emt 0:00:06]} Bc3 {[%emt 0:00:07]} 53. Bc5+ {[%emt 0:00:02]} Kd7 {[%emt 0:00:18]} 54. Kf3 {[%emt 0:00:02]} g6 {[%emt 0:00:19]} 55. g4 {[%emt 0:00:02]} Be1 {[%emt 0:00:02]} 56. f5 {[%emt 0:00:10]} exf5 {[%emt 0:00:09]} 57. exf5 {[%emt 0:00:04]} hxg4+ {[%emt 0:00:24]} 58. Kxg4 {[%emt 0:00:04]} gxf5+ {[%emt 0:00:02]} 59. Kh3 {[%emt 0:00:08]} Ke6 {[%emt 0:00:05]} 60. h5 {[%emt 0:00:01]} Kf6 {[%emt 0:00:06]} 61. Kg2 {[%emt 0:00:20]} Kg5 {[%emt 0:00:04]} 62. Kf3 {[%emt 0:00:05]} Bd2 {[%emt 0:00:08]} 63. Ke2 {[%emt 0:00:25]} Bc1 {[%emt 0:00:02]} 64. Kd3 {[%emt 0:00:03]} Kxh5 {[%emt 0:00:03]} 65. Bd6 {[%emt 0:00:01]} Kg4 {[%emt 0:00:04]} 66. Kd4 {[%emt 0:00:02]} Bf4 {[%emt 0:00:14]} 67. Bc5 {[%emt 0:00:03]} Bh2 {[%emt 0:00:06]} 68. Kd5 {[%emt 0:00:11]} f4 {[%emt 0:00:02]} 69. Kc6 {[%emt 0:00:02]} f3 {[%emt 0:00:02]} 70. Kxb5 {[%emt 0:00:01]} Kf5 {[%emt 0:00:06]} 71. Kc6 {[%emt 0:00:02]} Ke4 {[%emt 0:00:03]} 72. b5 {[%emt 0:00:02]} Be5 {[%emt 0:00:13]} 73. b6 {[%emt 0:00:02]} Kd3 {[%emt 0:00:06]} 74. b7 {[%emt 0:00:02]} Ke2 {[%emt 0:00:04]} 75. Bd6 {[%emt 0:00:05]} Bxd6 {[%emt 0:00:02]} 76. Kxd6 {[%emt 0:00:02]} f2 {[%emt 0:00:01]} 77. b8=Q {[%emt 0:00:03]} f1=Q {[%emt 0:00:02]} 78. Qb5+ {[%emt 0:00:01]} Ke1 {[%emt 0:00:02]} 79. Qxf1+ {[%emt 0:00:04]} Kxf1 {[%emt 0:00:01]} 1/2-1/2

[Event "European Online Club-ch-H 2021"]
[Site "Online"]
[Date "2021.03.27"]
[Round "7.19"]
[White "Zambor, Norbert"]
[Black "Kirszenberg, Marc"]
[Result "1-0"]
[ECO "B12"]
[WhiteElo "2260"]
[BlackElo "2130"]
[Annotator "NA"]
[PlyCount "63"]
[EventDate "2021.03.27"]
[EventType "team-tourn"]
[EventCountry "NET"]
[SourceTitle "playchess.com"]
[Source "ChessBase"]
[SourceQuality "1"]
[TimeControl "900+5"]

1. e4 {[%emt 0:00:00]} c6 {[%emt 0:00:03]} 2. d4 {[%emt 0:00:09]} d5 {[%emt 0:00:02]} 3. e5 {[%emt 0:00:19]} Bf5 {[%emt 0:00:03]} 4. Nd2 {[%emt 0:00:34]} e6 {[%emt 0:00:02]} 5. Nb3 {[%emt 0:00:03]} Nd7 {[%emt 0:00:02]} 6. Nf3 {[%emt 0:00:04]} h6 {[%emt 0:00:46]} 7. Be2 {[%emt 0:00:07]} Ne7 {[%emt 0:00:07]} 8. O-O {[%emt 0:00:07]} g5 {[%emt 0:00:07]} 9. a4 {[%emt 0:00:11]} a6 {[%emt 0:00:04]} 10. a5 {[%emt 0:00:06]} Bg7 {[%emt 0:00:16]} 11. Ne1 {[%emt 0:01:12]} c5 {[%emt 0:00:23]} 12. c3 {[%emt 0:00:21]} Nc6 {[%emt 0:00:19]} 13. f4 {[%emt 0:01:34]} c4 {[%emt 0:01:48]} 14. Nd2 {[%emt 0:00:04]} Nxa5 {[%emt 0:00:08]} 15. g4 {[%emt 0:00:12]} Bh7 {[%emt 0:00:15]} 16. f5 {[%emt 0:00:02]} Qb6 {[%emt 0:00:23]} 17. Kg2 {[%emt 0:01:22]} O-O-O {[%emt 0:01:12]} 18. Qa4 {[%emt 0:00:44]} Nc6 {[%emt 0:00:03]} 19. b3 {[%emt 0:00:18]} cxb3 {[%emt 0:03:02]} 20. Nxb3 {[%emt 0:00:12]} h5 {[%emt 0:00:19]} 21. h3 {[%emt 0:00:24]} hxg4 {[%emt 0:00:05]} 22. hxg4 {[%emt 0:00:03]} Ndxe5 {[%emt 0:00:41]} 23. dxe5 {[%emt 0:00:11]} Bxe5 {[%emt 0:00:05]} 24. Nd4 {[%emt 0:02:47]} Nxd4 {[%emt 0:00:53]} 25. cxd4 {[%emt 0:00:11]} Qxd4 {[%emt 0:00:02]} 26. Qxd4 {[%emt 0:01:07]} Bxd4 {[%emt 0:00:02]} 27. Ra4 {[%emt 0:00:21]} Bb6 {[%emt 0:01:05]} 28. Bxg5 {[%emt 0:00:47]} Rdg8 {[%emt 0:00:03]} 29. Bf6 {[%emt 0:00:02]} Bxf5 {[%emt 0:00:24]} 30. Bxh8 {[%emt 0:00:08]} Rxh8 {[%emt 0:00:20]} 31. gxf5 {[%emt 0:00:05]} Rg8+ {[%emt 0:00:08]} 32. Rg4 {[%emt 0:00:10]} 1-0

[Event "European Online Club-ch-H 2021"]
[Site "Online"]
[Date "2021.03.27"]
[Round "7.20"]
[White "Coupet, Pascal"]
[Black "Kusiak, Matej"]
[Result "1-0"]
[ECO "B13"]
[WhiteElo "2233"]
[BlackElo "2251"]
[Annotator "NA"]
[PlyCount "107"]
[EventDate "2021.03.27"]
[EventType "team-tourn"]
[EventCountry "NET"]
[SourceTitle "playchess.com"]
[Source "ChessBase"]
[SourceQuality "1"]
[TimeControl "900+5"]

1. e4 {[%emt 0:00:00]} c6 {[%emt 0:00:13]} 2. d4 {[%emt 0:00:22]} d5 {[%emt 0:00:03]} 3. exd5 {[%emt 0:00:02]} cxd5 {[%emt 0:00:03]} 4. Bd3 {[%emt 0:00:01]} Nc6 {[%emt 0:00:01]} 5. c3 {[%emt 0:00:03]} Nf6 {[%emt 0:00:02]} 6. Bf4 {[%emt 0:00:02]} Qb6 {[%emt 0:00:07]} 7. Qb3 {[%emt 0:01:24]} Qxb3 {[%emt 0:00:45]} 8. axb3 {[%emt 0:00:00]} e6 {[%emt 0:00:01]} 9. b4 {[%emt 0:00:16]} Bd7 {[%emt 0:00:04]} 10. Nf3 {[%emt 0:00:12]} Nh5 {[%emt 0:00:24]} 11. Be3 {[%emt 0:00:11]} Bd6 {[%emt 0:00:05]} 12. b5 {[%emt 0:00:45]} Ne7 {[%emt 0:00:37]} 13. Ne5 {[%emt 0:00:19]} f6 {[%emt 0:00:07]} 14. Nxd7 {[%emt 0:01:30]} Kxd7 {[%emt 0:00:03]} 15. g3 {[%emt 0:00:11]} g6 {[%emt 0:01:11]} 16. Nd2 {[%emt 0:00:14]} Nf5 {[%emt 0:00:11]} 17. Ke2 {[%emt 0:00:36]} Nxe3 {[%emt 0:00:04]} 18. fxe3 {[%emt 0:00:03]} f5 {[%emt 0:00:06]} 19. Rhc1 {[%emt 0:01:15]} Nf6 {[%emt 0:00:24]} 20. c4 {[%emt 0:00:13]} dxc4 {[%emt 0:00:04]} 21. Nxc4 {[%emt 0:00:04]} Bc7 {[%emt 0:01:49]} 22. Ra4 {[%emt 0:01:37]} Bb6 {[%emt 0:01:01]} 23. Rca1 {[%emt 0:01:29]} Rab8 {[%emt 0:00:06]} 24. Ne5+ {[%emt 0:00:36]} Ke7 {[%emt 0:00:08]} 25. Rxa7 {[%emt 0:00:14]} Bxa7 {[%emt 0:00:10]} 26. Rxa7 {[%emt 0:00:00]} Nd7 {[%emt 0:00:04]} 27. Nc6+ {[%emt 0:00:14]} bxc6 {[%emt 0:00:09]} 28. bxc6 {[%emt 0:00:02]} Rbd8 {[%emt 0:00:02]} 29. Bb5 {[%emt 0:00:03]} Kd6 {[%emt 0:00:03]} 30. cxd7 {[%emt 0:00:03]} Rb8 {[%emt 0:00:01]} 31. Ra5 {[%emt 0:00:54]} Rb6 {[%emt 0:00:23]} 32. b3 {[%emt 0:00:06]} Rhb8 {[%emt 0:00:09]} 33. Ba4 {[%emt 0:00:02]} R6b7 {[%emt 0:00:03]} 34. Ra6+ {[%emt 0:00:02]} Ke7 {[%emt 0:00:02]} 35. e4 {[%emt 0:00:07]} fxe4 {[%emt 0:05:26]} 36. Ke3 {[%emt 0:00:07]} Rxb3+ {[%emt 0:00:04]} 37. Bxb3 {[%emt 0:00:04]} Rxb3+ {[%emt 0:00:03]} 38. Kxe4 {[%emt 0:00:03]} Kxd7 {[%emt 0:00:01]} 39. Ra7+ {[%emt 0:00:02]} Kd6 {[%emt 0:00:02]} 40. Rxh7 {[%emt 0:00:02]} Rb1 {[%emt 0:00:02]} 41. Rg7 {[%emt 0:00:09]} Re1+ {[%emt 0:00:01]} 42. Kd3 {[%emt 0:00:07]} Rd1+ {[%emt 0:00:07]} 43. Ke3 {[%emt 0:00:03]} Re1+ {[%emt 0:00:02]} 44. Kf2 {[%emt 0:00:06]} Rd1 {[%emt 0:00:05]} 45. Rxg6 {[%emt 0:00:04]} Rxd4 {[%emt 0:00:02]} 46. h4 {[%emt 0:00:03]} Ke5 {[%emt 0:00:01]} 47. h5 {[%emt 0:00:53]} Kf5 {[%emt 0:01:05]} 48. Rg8 {[%emt 0:00:02]} e5 {[%emt 0:00:56]} 49. h6 {[%emt 0:00:34]} Rd7 {[%emt 0:00:14]} 50. Rg7 {[%emt 0:00:44]} Rd8 {[%emt 0:01:53]} 51. Ke3 {[%emt 0:00:31]} Kf6 {[%emt 0:00:12]} 52. g4 {[%emt 0:00:04]} Rh8 {[%emt 0:00:03]} 53. g5+ {[%emt 0:00:02]} Kf5 {[%emt 0:00:02]} 54. h7 {[%emt 0:00:18]} 1-0